lending/lending_fUSD_20240926
["ID","MTS","AMOUNT","RATE_DAILY","PERIOD"]
[339222090,1727368232454,-517.82981433,0.00011626,2]
[339222091,1727368232466,-300.0,0.00011626,2]
[339222092,1727368232478,-361.36554768,0.00011626,2]
[339222094,1727368232494,-4064.67310528,0.00011626,2]
[339222096,1727368232506,-354.16440123,0.00011626,2]
[339222098,1727368232518,-1362.40775069,0.00011626,2]
[339222100,1727368232528,-150.27,0.00011633,2]
[339222102,1727368232538,-219.6,0.00011633,2]
[339222104,1727368232548,-499.99,0.00011633,2]
[339222105,1727368232559,-1000.0,0.00011647,2]
[339222106,1727368232569,-150.0,0.0001175,2]
[339222107,1727368232581,-150.0,0.00011911,2]
[339222108,1727368232590,-256.10589523,0.00012,2]
[339222109,1727368232601,-166.89410477,0.00012,2]
[339222110,1727368232612,-423.0,0.00012,2]
[339222111,1727368232621,-261.56486449,0.00012,2]
[339222113,1727368232632,-479.84771151,0.00012,2]
[339222115,1727368232643,-102.687424,0.00012,2]
[339222116,1727368232652,-197.612576,0.00012041,2]
[339222124,1727368238279,-516.67986568,0.00012041,2]
[339222125,1727368238291,-39.50755832,0.00012041,2]
[339222126,1727368238300,-753.8,0.00012041,2]
[339222127,1727368238309,-751.13,0.00012041,2]
[339222128,1727368238318,-150.0,0.00012072,2]
[339222129,1727368238327,-423.0,0.000121,2]
[339222130,1727368238340,-753.8,0.000121,2]
[339222131,1727368238350,-753.8,0.000121,2]
[339222132,1727368238359,-423.0,0.000121,2]
[339222133,1727368238368,-753.8,0.000121,2]
[339222134,1727368238377,-357.52,0.000121,2]
[339222135,1727368238387,-423.0,0.000121,2]
[339222136,1727368238396,-636.513458,0.00012126,2]
[339222137,1727368238406,-358.21,0.00012178,2]
[339222138,1727368238415,-150.0,0.00012178,2]
[339222139,1727368238425,-150.0,0.00012178,2]
[339222140,1727368238434,-150.0,0.00012178,2]
[339222141,1727368238443,-428.4,0.00012178,2]
[339222142,1727368238453,-150.0,0.00012178,2]
[339222143,1727368238462,-150.0,0.00012178,2]
[339222144,1727368238472,-358.21,0.00012178,2]
[339222145,1727368238482,-150.0,0.00012178,2]
[339222146,1727368238491,-428.4,0.00012178,2]
[339222147,1727368238500,-428.4,0.00012178,2]
[339222148,1727368238510,-150.0,0.00012178,2]
[339222149,1727368238520,-150.0,0.00012178,2]
[339222150,1727368238530,-150.0,0.00012178,2]
[339222151,1727368238539,-428.4,0.00012178,2]
[339222152,1727368238548,-150.0,0.00012178,2]
[339222153,1727368238558,-150.0,0.00012178,2]
[339222154,1727368238567,-428.4,0.00012178,2]
[339222155,1727368238576,-207.35,0.00012178,2]
[339222156,1727368238590,-1437.289,0.00012211,2]
[339222157,1727368238600,-625.0,0.00012211,2]
[339222158,1727368238609,-203.06998368,0.00012211,2]
[339222159,1727368238632,-289.394105,0.00012211,2]
[339222160,1727368238644,-265.8190593,0.00012211,2]
[339222161,1727368238655,-173.71685202,0.00012211,2]
[339222162,1727368238664,-187.27,0.00012215,2]
[339222163,1727368238673,-435.33,0.00012231,2]
[339222164,1727368238682,-150.0,0.00012233,2]
[339222165,1727368238691,-365.38853198,0.00012278,2]
[339222166,1727368238702,-271.12492602,0.00012278,2]
[339222167,1727368238712,-150.0,0.000123,2]
[339222168,1727368238721,-150.0,0.000123,2]
[339222169,1727368238730,-150.0,0.000123,2]
[339222170,1727368238739,-67.17507398,0.000123,2]
[339222171,1727368238750,-216.43492602,0.000123,2]
[339222172,1727368238759,-187.74507398,0.00012329,2]
[339222173,1727368238773,-101.35492602,0.00012329,2]
[339222174,1727368238783,-150.0,0.00012394,2]
[339222175,1727368238792,-150.0,0.000124,2]
[339222176,1727368238804,-150.0,0.000124,2]
[339222177,1727368238813,-450.99397078,0.00012429,2]
[339222178,1727368238824,-185.51948722,0.00012429,2]
[339222179,1727368238834,-168.23,0.00012445,2]
[339222180,1727368238844,-152.0,0.00012484,3]
[339222181,1727368238853,-150.0,0.000125,2]
[339222182,1727368238862,-150.0,0.000125,2]
[339222183,1727368238872,-150.0,0.000125,2]
[339222184,1727368238883,-150.0,0.000125,2]
[339222185,1727368238892,-150.0,0.00012504,2]
[339222186,1727368238901,-500.0,0.00012534,2]
[339222187,1727368238910,-150.0,0.00012555,2]
[339222188,1727368238919,-214.401,0.00012556,2]
[339222189,1727368238929,-261.1947,0.00012556,2]
[339222190,1727368238938,-636.513458,0.00012581,2]
[339222191,1727368238947,-150.0,0.000126,2]
[339222192,1727368238957,-15289.5,0.00012657,2]
[339222193,1727368238966,-175.842,0.00012666,2]
[339222194,1727368238978,-1598.10958898,0.00012681,2]
[339222195,1727368238987,-150.0,0.00012688,2]
[339222196,1727368238996,-1598.10958889,0.00012694,2]
[339222197,1727368239005,-2368.7144,0.00012697,2]
[339222198,1727368239015,-1088.5985,0.000127,2]
[339222199,1727368239024,-168.56432535,0.000127,2]
[339222200,1727368239033,-1598.10958889,0.00012707,2]
[339222201,1727368239043,-150.0,0.00012716,2]
[339222202,1727368239053,-1598.10958889,0.00012721,2]
[339222203,1727368239062,-636.513458,0.00012732,2]
[339222204,1727368239073,-1598.10958889,0.00012734,2]
[339222205,1727368239083,-329.0,0.00012738,2]
[339222206,1727368239094,-1598.10958889,0.00012747,2]
[339222207,1727368239103,-168.56432533,0.0001275,2]
[339222208,1727368239112,-1598.10958889,0.0001276,2]
[339222209,1727368239121,-1598.10958889,0.00012774,2]
[339222210,1727368239130,-10888.67698848,0.0001278,2]
[339222211,1727368239146,-474.71702,0.0001278,2]
[339222212,1727368239157,-22112.86175311,0.0001278,2]
[339222216,1727368240054,-1894.97688256,0.0001278,2]
[339222217,1727368240263,-15292.25477099,0.0001278,2]
[339222218,1727368240278,-724.9941357,0.0001278,2]
[339222431,1727368243073,-2090.01442667,0.0001278,2]
[339222432,1727368243185,-1020.49863133,0.0001278,2]
[339222433,1727368243196,-9855.77220001,0.0001278,2]
[339222434,1727368243242,-1315.7521035,0.0001278,2]
[339222435,1727368243254,-1311.76,0.0001278,2]
[339222436,1727368243305,-11578.02151287,0.0001278,2]
[339222437,1727368243364,-2896.0,0.0001278,2]
[339222438,1727368243375,-51980.6116579,0.0001278,2]
[339222439,1727368243385,-180.0,0.00012781,2]
[339222440,1727368243395,-1598.10958889,0.00012787,2]
[339222441,1727368243404,-500.0,0.00012797,2]
[339222442,1727368243414,-200.0,0.00012797,2]
[339222443,1727368243423,-40682.2508,0.00012797,2]
[339222444,1727368243433,-801.5619,0.000128,2]
[339222445,1727368243442,-2500.0,0.000128,2]
[339222446,1727368243451,-500.0,0.000128,2]
[339222447,1727368243460,-493.199,0.000128,2]
[339222448,1727368243469,-9798.8944,0.000128,2]
[339222449,1727368243479,-6000.0,0.000128,2]
[339222450,1727368243488,-1001.0,0.000128,2]
[339222451,1727368243497,-189.54732073,0.000128,2]
[339222452,1727368243506,-190.04,0.000128,2]
[339222453,1727368243516,-168.56432533,0.000128,2]
[339222454,1727368243525,-1598.10958889,0.000128,2]
[339222455,1727368243534,-150.0,0.00012801,2]
[339222456,1727368243544,-500.0,0.00012812,2]
[339222457,1727368243553,-500.0,0.00012821,2]
[339222458,1727368243563,-500.0,0.0001283,2]
[339222459,1727368243573,-500.0,0.00012838,2]
[339222460,1727368243582,-500.0,0.00012847,2]
[339222461,1727368243593,-545.197,0.00012854,2]
[339222462,1727368243602,-500.0,0.00012856,2]
[339222463,1727368243612,-500.0,0.00012865,2]
[339222464,1727368243794,-175.779,0.0001287,2]
[339222465,1727368243808,-1748.27828253,0.0001287,2]
[339222466,1727368243818,-3793.92,0.0001287,2]
[339222467,1727368243828,-500.0,0.00012874,2]
[339222468,1727368243839,-150.0,0.00012877,2]
[339222469,1727368243849,-500.0,0.00012882,2]
[339222470,1727368243859,-500.0,0.00012891,2]
[339222471,1727368243869,-132022.93713615,0.00012895,2]
[339222473,1727368245988,-2500.0,0.0001268,2]
[339222474,1727368245998,-500.0,0.00012873,2]
[339222475,1727368246008,-18823.768735,0.00012895,2]
[339222476,1727368246054,-12519.8044073,0.00012895,2]
[339222477,1727368246169,-569.913098,0.00012895,2]
[339222478,1727368246183,-15931.3252,0.00012895,2]
[339222479,1727368246279,-13143.51646279,0.00012895,2]
[339222481,1727368560460,611.96949687,0.00011064,2]
[339222482,1727368650778,150.0,0.00014321,120]
[339222483,1727368697655,156.87,0.000139,31]
[339222484,1727368697712,156.87,0.000139,31]
[339222485,1727368697771,156.87,0.000139,31]
[339222486,1727368697831,156.87,0.000139,31]
[339222487,1727368697889,156.87,0.000139,31]
[339222488,1727368697956,156.87,0.000139,31]
[339222489,1727368698008,156.87,0.000139,31]
[339222490,1727368698073,156.87,0.000139,31]
[339222491,1727368705605,410.41,9.742e-05,2]
[339222492,1727368713038,150.0,0.0001389,30]
[339222567,1727369300253,156.91,0.000139,31]
[339222568,1727369300315,156.91,0.000139,31]
[339222569,1727369300376,156.91,0.000139,31]
[339222570,1727369300430,156.91,0.000139,31]
[339222572,1727369300491,156.91,0.000139,31]
[339222573,1727369300552,156.91,0.000139,31]
[339222574,1727369300614,156.91,0.000139,31]
[339222576,1727369324647,150.0,0.0001389,30]
[339222577,1727369336323,157.43,0.00010959,2]
[339222578,1727369387327,389.88,9.967e-05,2]
[339222584,1727369410532,1050.0,0.00011,2]
[339222608,1727369432302,-500.0,0.00011164,2]
[339222609,1727369432311,-500.0,0.00011164,2]
[339222610,1727369432321,-500.0,0.00011164,2]
[339222611,1727369432330,-250.0,0.0001153,2]
[339222612,1727369432340,-246.0,0.00011561,2]
[339222614,1727369432349,-150.0,0.00011561,2]
[339222615,1727369432359,-3002.2028,0.00011561,2]
[339222616,1727369432370,-1033.7,0.00011561,2]
[339222617,1727369432381,-642.3977412,0.00011561,2]
[339222618,1727369435024,-4624.3932,0.00011561,2]
[339222619,1727369435086,-656.69375819,0.00011561,2]
[339222620,1727369435098,-3702.08686573,0.00011561,2]
[339222621,1727369435202,-397.56791311,0.00011561,2]
[339222622,1727369435215,-35940.95772177,0.00011561,2]
[339222623,1727369435224,-150.0,0.00011562,2]
[339222624,1727369435235,-200.95,0.00011573,2]
[339222625,1727369435246,-250.0,0.00011577,2]
[339222626,1727369435256,-1500.0,0.00011578,2]
[339222627,1727369435266,-200.0,0.00011579,2]
[339222628,1727369435275,-150.27,0.00011579,2]
[339222629,1727369435284,-150.0,0.00011589,2]
[339222630,1727369435294,-499.99,0.00011601,2]
[339222631,1727369435303,-178.61,0.00011602,2]
[339222632,1727369435313,-320.89,0.00011602,2]
[339222634,1727369435323,-3977.25,0.00011602,2]
[339222636,1727369435332,-3800.96,0.00011679,2]
[339222638,1727369435342,-250.0,0.00011885,2]
[339222640,1727369435351,-1000.0,0.00011885,2]
[339222642,1727369435360,-775.56,0.00011885,2]
[339222644,1727369435370,-600.0,0.000119,4]
[339222646,1727369435380,-238.75,0.00011914,2]
[339222648,1727369435389,-238.5,0.00011952,2]
[339222650,1727369435398,-1000.0,0.00012,2]
[339222652,1727369435408,-753.8,0.00012,2]
[339222654,1727369435418,-753.8,0.00012,2]
[339222656,1727369435427,-752.53,0.00012,2]
[339222658,1727369435437,-1200.0,0.00012,4]
[339222659,1727369435446,-753.8,0.00012041,2]
[339222661,1727369435456,-753.8,0.00012041,2]
[339222664,1727369435467,-753.8,0.00012041,2]
[339222666,1727369435476,-1800.0,0.000121,4]
[339222667,1727369435486,-447.75,0.00012178,2]
[339222669,1727369435496,-150.0,0.00012178,2]
[339222672,1727369435506,-718.02,0.00012178,2]
[339222673,1727369435516,-428.4,0.00012178,2]
[339222675,1727369435526,-428.4,0.00012178,2]
[339222679,1727369435724,-2400.0,0.000122,4]
[339222680,1727369435734,-389.88,0.00012231,2]
[339222681,1727369435743,-3000.0,0.000123,4]
[339222682,1727369435752,-600.0,0.000124,4]
[339222683,1727369435762,-300.51,0.00012452,2]
[339222684,1727369435771,-504.27025331,0.000125,2]
[339222685,1727369435780,-600.0,0.000125,4]
[339222686,1727369435790,-250.0,0.00012504,2]
[339222687,1727369435799,-150.0,0.00012504,2]
[339222688,1727369435808,-238.714,0.00012504,2]
[339222689,1727369435817,-500.0,0.00012534,2]
[339222690,1727369435829,-600.0,0.000126,4]
[339222691,1727369435838,-567.28725526,0.00012609,2]
[339222692,1727369435847,-567.28725522,0.0001263,2]
[339222693,1727369435857,-567.28725522,0.00012651,2]
[339222694,1727369435865,-567.28725522,0.00012673,2]
[339222695,1727369435875,-12248.9453,0.0001268,2]
[339222696,1727369435884,-23414.7689,0.0001268,2]
[339222697,1727369435893,-10582.3338,0.0001268,2]
[339222698,1727369435903,-567.28725522,0.00012694,2]
[339222699,1727369435912,-600.0,0.000127,4]
[339222700,1727369435921,-180.0,0.00012709,2]
[339222701,1727369435931,-567.28725522,0.00012715,2]
[339222702,1727369435939,-567.28725522,0.00012736,2]
[339222703,1727369435948,-567.28725522,0.00012758,2]
[339222704,1727369435958,-567.28725522,0.00012779,2]
[339222705,1727369435969,-500.0,0.00012797,2]
[339222706,1727369435978,-200.0,0.00012797,2]
[339222707,1727369435987,-4801.1269,0.00012797,2]
[339222708,1727369435997,-166.9096,0.00012797,2]
[339222709,1727369436006,-3891.4521,0.00012797,2]
[339222710,1727369436016,-168.44791415,0.00012799,2]
[339222711,1727369436025,-338.90129984,0.00012799,2]
[339222712,1727369436035,-567.28725522,0.000128,2]
[339222713,1727369436044,-973.0,0.000128,4]
[339222714,1727369436055,-151.58858866,0.000128,2]
[339222715,1727369436065,-152.08,0.000128,2]
[339222716,1727369436074,-554.82,0.00012841,2]
[339222717,1727369436083,-500.0,0.00012856,2]
[339222718,1727369436092,-500.0,0.00012865,2]
[339222719,1727369436101,-189.969,0.00012865,2]
[339222720,1727369436111,-500.0,0.00012874,2]
[339222721,1727369436120,-500.0,0.00012882,2]
[339222722,1727369436129,-151.48,0.00012889,2]
[339222723,1727369436139,-171.48637452,0.00012889,2]
[339222724,1727369436151,-500.0,0.00012891,2]
[339222725,1727369436160,-10200.85996686,0.00012895,2]
[339222726,1727369436169,-2000.0,0.00012895,2]
[339222727,1727369436178,-200.0,0.00012895,2]
[339222728,1727369436187,-15062.47146586,0.00012897,2]
[339222741,1727369438591,-2053.80187602,0.00012897,2]
[339222742,1727369438648,-442.2982451,0.00012897,2]
[339222743,1727369438703,-793.57672261,0.00012897,2]
[339222812,1727369440232,-591.419478,0.00012897,2]
[339222813,1727369440292,-118307.8365926,0.00012897,2]
[339222814,1727369440301,-274936.92150694,0.00012899,2]
[339222815,1727369440315,-7900.0844769,0.00012899,2]
[339222816,1727369440325,-1433.92938976,0.00012899,3]
[339222817,1727369440335,-1433.92938975,0.00012899,3]
[339222818,1727369440346,-18156.72562395,0.00012899,3]
[339222819,1727369440358,-1735.87471476,0.00012899,3]
[339222820,1727369440374,-300.0,0.00012899,3]
[339222821,1727369440387,-560.58454009,0.00012899,3]
[339222822,1727369440399,-4130.24694756,0.00012899,3]
[339222823,1727369440411,-14877.84948,0.00012899,3]
[339222824,1727369440423,-583.389,0.00012899,3]
[339222825,1727369440435,-1420.92,0.00012899,3]
[339222826,1727369440513,-16384.0,0.00012899,3]
[339222827,1727369440526,-31400.15010002,0.00012899,3]
[339222828,1727369440537,-989.22878096,0.00012899,3]
[339222829,1727369440548,-952.47687904,0.00012899,3]
[339222905,1727369443333,-351824.49573303,0.00012899,3]
[339222906,1727369443343,-297.36950172,0.00012899,2]
[339222907,1727369443353,-1000.0,0.00012899,3]
[339222908,1727369443363,-545.98416048,0.000129,2]
[339222909,1727369443373,-26097.45122989,0.000129,2]
[339222910,1727369443385,-11703.23040131,0.000129,2]
[339222911,1727369443552,-19676.4,0.000129,2]
[339222926,1727369446430,-268.47463165,0.000129,2]
[339222927,1727369446500,-2195.89994358,0.000129,2]
[339222928,1727369446512,-13133.0,0.000129,2]
[339222929,1727369446543,-3437.14374,0.000129,2]
[339222930,1727369446555,-37102.46546262,0.000129,2]
[339222947,1727369540226,1000.0,0.00011,2]
[339222948,1727369647410,-500.0,0.00011164,2]
[339222949,1727369647434,-500.0,0.00011164,2]
[339222950,1727369647459,-170.97,0.00011885,2]
[339222951,1727369647483,-274.83,0.00011885,2]
[339222952,1727369647508,-2000.0,0.00012,5]
[339222953,1727369647531,-300.0,0.00012124,2]
[339222954,1727369647555,-150.0,0.00012124,2]
[339222956,1727369682431,500.0,0.00011164,2]
[339222957,1727369691269,500.0,0.00011164,2]
[339222958,1727369746824,200.95,0.00011885,2]
[339222959,1727369769620,1500.0,0.00011885,2]
[339222960,1727369813496,200.0,0.00011826,2]
[339222961,1727369903041,156.99,0.000139,31]
[339222962,1727369903099,156.99,0.000139,31]
[339222963,1727369903158,156.99,0.000139,31]
[339222964,1727369903365,156.99,0.000139,31]
[339222965,1727369903468,156.99,0.000139,31]
[339222966,1727369903507,156.99,0.000139,31]
[339222967,1727369903541,156.99,0.000139,31]
[339222968,1727369966622,250.0,0.00011885,2]
[339222969,1727369976996,200.0,0.00011885,2]
[339222970,1727369990170,150.0,0.0001389,30]
[339222972,1727370151705,350.89,9.967e-05,2]
[339222974,1727370244091,190.8,0.00011885,2]
[339222975,1727370303104,150.0,0.00011589,2]
[339222976,1727370305283,284.14672273,0.00011589,2]
[339222977,1727370307378,246.58357932,0.00011589,2]
[339222978,1727370309247,171.57410942,0.00011589,2]
[339222979,1727370312657,168.44385972,0.00011589,2]
[339222980,1727370317670,195.0867668,0.00011589,2]
[339222981,1727370319538,150.20135592,0.00011589,2]
[339222982,1727370321356,256.17612795,0.00011589,2]
[339222983,1727370323689,152.2575597,0.00011589,2]
[339222984,1727370328759,150.6633139,0.00011589,2]
[339222985,1727370333605,244.42361065,0.00011589,2]
[339222986,1727370335595,151.87307601,0.00011589,2]
[339223004,1727370352730,1765.11,0.00011885,2]
[339223008,1727370614430,1000.0,0.00011885,2]
[339223021,1727370631397,-153.285102,0.00012126,2]
[339223023,1727370631407,-158.492037,0.00012126,2]
[339223025,1727370631417,-350.89,0.00012231,2]
[339223027,1727370631427,-90.1935816,0.00012278,2]
[339223028,1727370631456,-68.2984554,0.00012278,2]
[339223029,1727370631466,-153.285102,0.00012429,2]
[339223030,1727370631475,-46.3664426,0.00012429,2]
[339223031,1727370631486,-112.1255944,0.00012429,2]
[339223032,1727370631496,-2886.07955637,0.00012429,2]
[339223033,1727370631515,-579.913739,0.00012429,2]
[339223034,1727370631531,-328.5,0.00012429,2]
[339223035,1727370631684,-5107.79025663,0.00012429,2]
[339223036,1727370631697,-450.0,0.00012429,2]
[339223038,1727370637849,-32966.76603345,0.00012429,2]
[339223039,1727370637920,-460.04,0.00012429,2]
[339223040,1727370637967,-1201.07485359,0.00012429,2]
[339223144,1727370639467,-2327.51836632,0.00012429,2]
[339223152,1727370639529,-3692.31719464,0.00012429,2]
[339223154,1727370639544,-169.33,0.00012445,2]
[339223155,1727370639553,-158.492037,0.00012581,2]
[339223157,1727370639563,-42266.0689,0.00012599,2]
[339223159,1727370639572,-1583.9853,0.00012599,2]
[339223161,1727370639582,-182.20648789,0.000126,2]
[339223163,1727370639593,-152.0,0.00012604,3]
[339223165,1727370639603,-499.99,0.00012699,2]
[339223168,1727370639616,-245000.0,0.00012699,2]
[339223170,1727370639626,-550.9499,0.000127,2]
[339223172,1727370639635,-423.0,0.000127,2]
[339223174,1727370639645,-753.8,0.000127,2]
[339223176,1727370639654,-423.0,0.000127,2]
[339223178,1727370639664,-753.8,0.000127,2]
[339223180,1727370639674,-423.0,0.000127,2]
[339223182,1727370639684,-594.32,0.000127,2]
[339223184,1727370639694,-423.0,0.000127,2]
[339223186,1727370639704,-285.11,0.000127,2]
[339223188,1727370639714,-153.285102,0.00012732,2]
[339223190,1727370639724,-158.492037,0.00012732,2]
[339223192,1727370639734,-500.0,0.00012797,2]
[339223193,1727370639743,-200.0,0.00012797,2]
[339223194,1727370639753,-13959.3691,0.000128,2]
[339223195,1727370639763,-448.8191,0.000128,2]
[339223196,1727370639773,-380.7447,0.000128,2]
[339223197,1727370639782,-2500.0,0.000128,2]
[339223198,1727370639792,-2500.0,0.000128,2]
[339223199,1727370639802,-61999.99999801,0.000128,2]
[339223200,1727370639811,-242.94,0.000128,2]
[339223201,1727370639822,-1552.35830162,0.000128,2]
[339223202,1727370639832,-500.0,0.00012812,2]
[339223203,1727370639842,-500.0,0.00012821,2]
[339223204,1727370639853,-500.0,0.0001283,2]
[339223205,1727370639865,-500.0,0.00012838,2]
[339223206,1727370639875,-500.0,0.00012847,2]
[339223207,1727370639884,-199.429,0.00012856,2]
[339223209,1727370639894,-500.0,0.00012856,2]
[339223210,1727370639905,-538.786,0.00012859,2]
[339223212,1727370639915,-500.0,0.00012865,2]
[339223215,1727370639927,-500.0,0.00012873,2]
[339223217,1727370639936,-500.0,0.00012873,2]
[339223219,1727370639946,-500.0,0.00012874,2]
[339223221,1727370639955,-150.0,0.00012877,2]
[339223223,1727370639965,-500.0,0.00012882,2]
[339223225,1727370639975,-151.47,0.0001289,2]
[339223227,1727370639985,-171.48637453,0.0001289,2]
[339223229,1727370639995,-500.0,0.00012891,2]
[339223231,1727370640004,-194943.53549463,0.000129,2]
[339223233,1727370640013,-436.78732839,0.000129,2]
[339223235,1727370640022,-26686.55219604,0.000129,2]
[339223238,1727370640042,-4584.09,0.000129,2]
[339223436,1727370642734,-499.99,0.00012732,2]
[339223437,1727370642744,-1561.08016047,0.000129,2]
[339223438,1727370642755,-5629.68405523,0.000129,2]
[339223439,1727370642767,-347190.051716,0.000129,2]
[339223440,1727370642786,-550.0000005,0.000129,2]
[339223441,1727370642797,-367.52000032,0.000129,2]
[339223442,1727370642809,-715.58487265,0.000129,2]
[339223443,1727370642824,-3282.0027101,0.000129,2]
[339223444,1727370642835,-85699.57582601,0.000129,2]
[339223449,1727370645506,-1131.29067805,0.000129,2]
[339223450,1727370645517,-19746.22649999,0.000129,2]
[339223451,1727370645606,-395.433288,0.000129,2]
[339223452,1727370645721,-489.59461654,0.000129,2]
[339223453,1727370645732,-13156.85343229,0.000129,2]
[339223714,1727370651186,500.0,0.00011164,2]
[339223715,1727370689085,500.0,0.00011164,2]
[339223716,1727370715857,250.0,0.00011885,2]
[339223717,1727370726220,315.8,9.967e-05,2]
[339223718,1727370761379,250.0,0.00011885,2]
[339223720,1727370797336,150.0,0.0001389,30]
[339223721,1727370839185,336.28,0.00010959,2]
[339223722,1727371028713,179.58,0.00011885,2]
[339223723,1727371061501,1500.0,0.00011885,2]
[339223724,1727371110282,259.39,0.000139,31]
[339223725,1727371110321,259.39,0.000139,31]
[339223726,1727371110353,259.39,0.000139,31]
[339223727,1727371110404,259.39,0.000139,31]
[339223728,1727371110459,259.39,0.000139,31]
[339223729,1727371110529,259.39,0.000139,31]
[339223730,1727371110601,259.39,0.000139,31]
[339223731,1727371110645,259.39,0.000139,31]
[339223732,1727371110703,259.39,0.000139,31]
[339223733,1727371110768,259.39,0.000139,31]
[339223734,1727371110830,259.39,0.000139,31]
[339223735,1727371110890,259.39,0.000139,31]
[339223736,1727371110955,259.39,0.000139,31]
[339223737,1727371111008,259.39,0.000139,31]
[339223738,1727371111068,259.39,0.000139,31]
[339223739,1727371111128,259.39,0.000139,31]
[339223740,1727371164072,1000.00000099,0.00015,30]
[339223741,1727371183068,200.0,0.00011885,2]
[339223742,1727371287656,500.0,0.00011885,2]
[339223743,1727371302747,157.73970547,0.00012031,2]
[339223744,1727371324138,250.0,0.00011885,2]
[339223745,1727371434012,150.0,0.0001389,30]
[339223746,1727371471370,327.56,9.967e-05,2]
[339223747,1727371505916,316.2234366,0.00011589,2]
[339223748,1727371506302,316.2234366,0.00011602,2]
[339223749,1727371509075,316.2234366,0.00011615,2]
[339223750,1727371509471,316.2234366,0.00011628,2]
[339223751,1727371509811,316.2234366,0.00011641,2]
[339223752,1727371510127,316.2234366,0.00011654,2]
[339223753,1727371510767,316.2234366,0.00011667,2]
[339223754,1727371511119,316.2234366,0.0001168,2]
[339223755,1727371511427,316.2234366,0.00011693,2]
[339223756,1727371511785,316.2234366,0.00011706,2]
[339223757,1727371512164,316.2234366,0.00011719,2]
[339223758,1727371512553,316.2234366,0.00011732,2]
[339223759,1727371512875,316.2234366,0.00011745,2]
[339223760,1727371513176,316.2234366,0.00011758,2]
[339223761,1727371513515,316.2234366,0.00011771,2]
[339223762,1727371513822,316.2234366,0.00011784,2]
[339223763,1727371514182,316.2234366,0.00011797,2]
[339223764,1727371515023,316.2234366,0.0001181,2]
[339223765,1727371515073,316.2234366,0.00011823,2]
[339223766,1727371515174,316.2234366,0.00011836,2]
[339223767,1727371515482,316.2234366,0.00011849,2]
[339223768,1727371518034,150.0,0.00011589,2]
[339223769,1727371518373,150.0,0.00011604,2]
[339223770,1727371518668,150.0,0.00011618,2]
[339223771,1727371518987,150.0,0.00011633,2]
[339223772,1727371519305,150.0,0.00011648,2]
[339223773,1727371519606,150.0,0.00011662,2]
[339223774,1727371519930,150.0,0.00011677,2]
[339223775,1727371520230,150.0,0.00011691,2]
[339223776,1727371520579,150.0,0.00011706,2]
[339223777,1727371520883,150.0,0.00011721,2]
[339223778,1727371521201,150.0,0.00011735,2]
[339223779,1727371521526,150.0,0.0001175,2]
[339223780,1727371522268,150.0,0.00011765,2]
[339223781,1727371522559,150.0,0.00011779,2]
[339223782,1727371522876,150.0,0.00011794,2]